Workbook

Sheet Form
A5: รายการได้ | C5: รายการหัก | E5: =Print!A3 -> วันที่ออกเงินเดือน
A7: =Sheet1!I21 -> เงินเดือน | B7: =Sheet1!I22 -> 38250 | C7: =Sheet1!T21 -> ประกันสังคม | D7: =Sheet1!T22 -> 750
A8: =Sheet1!J21 -> OT(จำนวนเงิน) | B8: =Sheet1!J22 -> 2800 | C8: =Sheet1!U21 -> ภาษี | D8: =Sheet1!U22 -> 1051.666667
A9: =Sheet1!K21 -> Commission | B9: =Sheet1!K22 -> 1500 | C9: =Sheet1!W21 -> กองทุนสำรองเลี้ยงชีพ | D9: =Sheet1!W22 -> 1147.5
A10: =Sheet1!L21 -> ค่าเบี้ยขยัน | B10: =Sheet1!L22 -> 800 | C10: =Sheet1!X21 -> หักเบิกล่วงหน้า | D10: =Sheet1!X22 -> 0
A11: =Sheet1!M21 -> ค่าเบี้ยเลี้ยง | B11: =Sheet1!M22 -> 0 | C11: =Sheet1!Y21 -> อื่นๆ | D11: =Sheet1!Y22 -> 1500
A12: =Sheet1!N21 -> ค่าโทรศัพท์ | B12: =Sheet1!N22 -> 0 | C12: =Sheet1!Z21 -> เปลี่ยนได้ z | D12: =Sheet1!Z22 -> 1
A13: =Sheet1!O21 -> ค่าเดินทาง/ค่าพาหนะ | B13: =Sheet1!O22 -> 0 | C13: =Sheet1!AA21 -> เปลี่ยนได้ aa | D13: =Sheet1!AA22 -> 2 | E13: =Sheet1!AF21 -> รายได้สุทธิ
A14: =Sheet1!P21 -> เงินโบนัส | B14: =Sheet1!P22 -> 0 | C14: =Sheet1!AB21 -> เปลี่ยนได้ ab | D14: =Sheet1!AB22 -> 3
A15: =Sheet1!S21 -> รวมรายรับ | B15: =Sheet1!S22 -> 43350 | C15: =Sheet1!AE21 -> รวมรายการหัก | D15: =Sheet1!AE22 -> 4459.166667
A17: เงินได้สะสม / ปี | B17: ภาษีสะสม / ปี | C17: กองทุนสำรองเลี้ยงชีพสะสม / ปี | D17: ประกันสังคมสะสม / ปี
A18: =Sheet1!E14 -> 43350 | B18: =Sheet1!G14 -> 1051.666667 | C18: =Sheet1!K14 -> 1147.5 | D18: =Sheet1!I14 -> 750

Sheet Sheet1 (hidden)
A1: =DuenTee -> 1 | B1: 1 | C1: มกราคม | D1: =IFERROR(COUNT('1'!A:A),0) -> 4 | E1: =IFERROR(VLOOKUP(EmpID,'1'!$B:$AF,18,0),0) -> 43350 | F1: =E1 -> 43350 | G1: =IFERROR(VLOOKUP(EmpID,'1'!$B:$AF,20,0),0) -> 1051.666667 | H1: =G1 -> 1051.666667 | I1: =IFERROR(VLOOKUP(EmpID,'1'!$B:$AF,19,0),0) -> 750 | J1: =I1 -> 750 | K1: =IFERROR(VLOOKUP(EmpID,'1'!$B:$AK,22,0),0) -> 1147.5 | L1: =K1 -> 1147.5
A2: =No -> 1 | B2: 2 | C2: กุมภาพันธ์ | D2: =IFERROR(COUNT('2'!A:A),0) -> 0 | E2: =IFERROR(VLOOKUP(EmpID,'2'!$B:$AE,18,0),0) -> 0 | F2: =SUM(E$1:$E2) -> 43350 | G2: =IFERROR(VLOOKUP(EmpID,'2'!$B:$AE,20,0),0) -> 0 | H2: =SUM(G$1:$G2) -> 1051.666667 | I2: =IFERROR(VLOOKUP(EmpID,'2'!$B:$AE,19,0),0) -> 0 | J2: =SUM(I$1:$I2) -> 750 | K2: =IFERROR(VLOOKUP(EmpID,'2'!$B:$AJ,22,0),0) -> 0 | L2: =SUM($K$1:K2) -> 1147.5
A3: =EmpID -> 63001 | B3: 3 | C3: มีนาคม | D3: =IFERROR(COUNT('3'!A:A),0) -> 0 | E3: =IFERROR(VLOOKUP(EmpID,'3'!$B:$AE,18,0),0) -> 0 | F3: =SUM(E$1:$E3) -> 43350 | G3: =IFERROR(VLOOKUP(EmpID,'3'!$B:$AE,20,0),0) -> 0 | H3: =SUM(G$1:$G3) -> 1051.666667 | I3: =IFERROR(VLOOKUP(EmpID,'3'!$B:$AE,19,0),0) -> 0 | J3: =SUM(I$1:$I3) -> 750 | K3: =IFERROR(VLOOKUP(EmpID,'3'!$B:$AJ,22,0),0) -> 0 | L3: =SUM($K$1:K3) -> 1147.5
B4: 4 | C4: เมษายน | D4: =IFERROR(COUNT('4'!A:A),0) -> 0 | E4: =IFERROR(VLOOKUP(EmpID,'4'!$B:$AE,18,0),0) -> 0 | F4: =SUM(E$1:$E4) -> 43350 | G4: =IFERROR(VLOOKUP(EmpID,'4'!$B:$AE,20,0),0) -> 0 | H4: =SUM(G$1:$G4) -> 1051.666667 | I4: =IFERROR(VLOOKUP(EmpID,'4'!$B:$AE,19,0),0) -> 0 | J4: =SUM(I$1:$I4) -> 750 | K4: =IFERROR(VLOOKUP(EmpID,'4'!$B:$AJ,22,0),0) -> 0 | L4: =SUM($K$1:K4) -> 1147.5
B5: 5 | C5: พฤษภาคม | D5: =IFERROR(COUNT('5'!A:A),0) -> 0 | E5: =IFERROR(VLOOKUP(EmpID,'5'!$B:$AE,18,0),0) -> 0 | F5: =SUM(E$1:$E5) -> 43350 | G5: =IFERROR(VLOOKUP(EmpID,'5'!$B:$AE,20,0),0) -> 0 | H5: =SUM(G$1:$G5) -> 1051.666667 | I5: =IFERROR(VLOOKUP(EmpID,'5'!$B:$AE,19,0),0) -> 0 | J5: =SUM(I$1:$I5) -> 750 | K5: =IFERROR(VLOOKUP(EmpID,'5'!$B:$AJ,22,0),0) -> 0 | L5: =SUM($K$1:K5) -> 1147.5
B6: 6 | C6: มิถุนายน | D6: =IFERROR(COUNT('6'!A:A),0) -> 0 | E6: =IFERROR(VLOOKUP(EmpID,'6'!$B:$AE,18,0),0) -> 0 | F6: =SUM(E$1:$E6) -> 43350 | G6: =IFERROR(VLOOKUP(EmpID,'6'!$B:$AE,20,0),0) -> 0 | H6: =SUM(G$1:$G6) -> 1051.666667 | I6: =IFERROR(VLOOKUP(EmpID,'6'!$B:$AE,19,0),0) -> 0 | J6: =SUM(I$1:$I6) -> 750 | K6: =IFERROR(VLOOKUP(EmpID,'6'!$B:$AJ,22,0),0) -> 0 | L6: =SUM($K$1:K6) -> 1147.5
B7: 7 | C7: กรกฎาคม | D7: =IFERROR(COUNT('7'!A:A),0) -> 0 | E7: =IFERROR(VLOOKUP(EmpID,'7'!$B:$AE,18,0),0) -> 0 | F7: =SUM(E$1:$E7) -> 43350 | G7: =IFERROR(VLOOKUP(EmpID,'7'!$B:$AE,20,0),0) -> 0 | H7: =SUM(G$1:$G7) -> 1051.666667 | I7: =IFERROR(VLOOKUP(EmpID,'7'!$B:$AE,19,0),0) -> 0 | J7: =SUM(I$1:$I7) -> 750 | K7: =IFERROR(VLOOKUP(EmpID,'7'!$B:$AJ,22,0),0) -> 0 | L7: =SUM($K$1:K7) -> 1147.5
B8: 8 | C8: สิงหาคม | D8: =IFERROR(COUNT('8'!A:A),0) -> 0 | E8: =IFERROR(VLOOKUP(EmpID,'8'!$B:$AE,18,0),0) -> 0 | F8: =SUM(E$1:$E8) -> 43350 | G8: =IFERROR(VLOOKUP(EmpID,'8'!$B:$AE,20,0),0) -> 0 | H8: =SUM(G$1:$G8) -> 1051.666667 | I8: =IFERROR(VLOOKUP(EmpID,'8'!$B:$AE,19,0),0) -> 0 | J8: =SUM(I$1:$I8) -> 750 | K8: =IFERROR(VLOOKUP(EmpID,'8'!$B:$AJ,22,0),0) -> 0 | L8: =SUM($K$1:K8) -> 1147.5
B9: 9 | C9: กันยายน | D9: =IFERROR(COUNT('9'!A:A),0) -> 0 | E9: =IFERROR(VLOOKUP(EmpID,'9'!$B:$AE,18,0),0) -> 0 | F9: =SUM(E$1:$E9) -> 43350 | G9: =IFERROR(VLOOKUP(EmpID,'9'!$B:$AE,20,0),0) -> 0 | H9: =SUM(G$1:$G9) -> 1051.666667 | I9: =IFERROR(VLOOKUP(EmpID,'9'!$B:$AE,19,0),0) -> 0 | J9: =SUM(I$1:$I9) -> 750 | K9: =IFERROR(VLOOKUP(EmpID,'9'!$B:$AJ,22,0),0) -> 0 | L9: =SUM($K$1:K9) -> 1147.5
B10: 10 | C10: ตุลาคม | D10: =IFERROR(COUNT('10'!A:A),0) -> 0 | E10: =IFERROR(VLOOKUP(EmpID,'10'!$B:$AE,18,0),0) -> 0 | F10: =SUM(E$1:$E10) -> 43350 | G10: =IFERROR(VLOOKUP(EmpID,'10'!$B:$AE,20,0),0) -> 0 | H10: =SUM(G$1:$G10) -> 1051.666667 | I10: =IFERROR(VLOOKUP(EmpID,'10'!$B:$AE,19,0),0) -> 0 | J10: =SUM(I$1:$I10) -> 750 | K10: =IFERROR(VLOOKUP(EmpID,'10'!$B:$AJ,22,0),0) -> 0 | L10: =SUM($K$1:K10) -> 1147.5
B11: 11 | C11: พฤศจิกายน | D11: =IFERROR(COUNT('11'!A:A),0) -> 0 | E11: =IFERROR(VLOOKUP(EmpID,'11'!$B:$AE,18,0),0) -> 0 | F11: =SUM(E$1:$E11) -> 43350 | G11: =IFERROR(VLOOKUP(EmpID,'11'!$B:$AE,20,0),0) -> 0 | H11: =SUM(G$1:$G11) -> 1051.666667 | I11: =IFERROR(VLOOKUP(EmpID,'11'!$B:$AE,19,0),0) -> 0 | J11: =SUM(I$1:$I11) -> 750 | K11: =IFERROR(VLOOKUP(EmpID,'11'!$B:$AJ,22,0),0) -> 0 | L11: =SUM($K$1:K11) -> 1147.5
B12: 12 | C12: ธันวาคม | D12: =IFERROR(COUNT('12'!A:A),0) -> 0 | E12: =IFERROR(VLOOKUP(EmpID,'12'!$B:$AE,18,0),0) -> 0 | F12: =SUM(E$1:$E12) -> 43350 | G12: =IFERROR(VLOOKUP(EmpID,'12'!$B:$AE,20,0),0) -> 0 | H12: =SUM(G$1:$G12) -> 1051.666667 | I12: =IFERROR(VLOOKUP(EmpID,'12'!$B:$AE,19,0),0) -> 0 | J12: =SUM(I$1:$I12) -> 750 | K12: =IFERROR(VLOOKUP(EmpID,'12'!$B:$AJ,22,0),0) -> 0 | L12: =SUM($K$1:K12) -> 1147.5
E14: =IF(A1=1,F1,IF(A1=2,F2,IF(A1=3,F3,IF(A1=4,F4,IF(A1=5,F5,IF(A1=6,F6,IF(A1=7,F7,IF(A1=8,F8,IF(A1=9,F9,IF(A1=10,F10,IF(A1=11,F11,IF(A1=12,F12)))))))))))) -> 43350 | G14: =IF(A1=1,H1,IF(A1=2,H2,IF(A1=3,H3,IF(A1=4,H4,IF(A1=5,H5,IF(A1=6,H6,IF(A1=7,H7,IF(A1=8,H8,IF(A1=9,H9,IF(A1=10,H10,IF(A1=11,H11,IF(A1=12,H12)))))))))))) -> 1051.666667 | I14: =IF(A1=1,J1,IF(A1=2,J2,IF(A1=3,J3,IF(A1=4,J4,IF(A1=5,J5,IF(A1=6,J6,IF(A1=7,J7,IF(A1=8,J8,IF(A1=9,J9,IF(A1=10,J10,IF(A1=11,J11,IF(A1=12,J12)))))))))))) -> 750 | K14: =IF(A1=1,L1,IF(A1=2,L2,IF(A1=3,L3,IF(A1=4,L4,IF(A1=5,L5,IF(A1=6,L6,IF(A1=7,L7,IF(A1=8,L8,IF(A1=9,L9,IF(A1=10,L10,IF(A1=11,L11,IF(A1=12,L12)))))))))))) -> 1147.5
E15: รายได้สะสม | G15: ภาษีสะสม | I15: ประกันสังคมสะสม | K15: กองทุนสะสม
A16: Limit ให้ | B16: 100 | C16: คน
A19: 1 | B19: 2 | C19: 3 | D19: 4 | E19: 5 | F19: 6 | G19: 7 | H19: 8 | I19: 9 | J19: 10 | K19: 11 | L19: 12 | M19: 13 | N19: 14 | O19: 15 | P19: 16 | Q19: 17 | R19: 18 | S19: 19 | T19: 20 | U19: 21 | V19: 22 | W19: 23 | X19: 24 | Y19: 25 | Z19: 26 | AA19: 27 | AB19: 28 | AC19: 29 | AD19: 30 | AE19: 31 | AF19: 32 | AG19: 33 | AH19: 34 | AI19: 35 | AJ19: 36 | AK19: 37 | AL19: 38 | AM19: 39 | AN19: 40 | AO19: 41
A20: a1 | B20: b1 | C20: c1 | D20: d1 | E20: e1 | F20: f1 | G20: g1 | H20: h1 | I20: i1 | J20: j1 | K20: k1 | L20: l1 | M20: m1 | N20: n1 | O20: o1 | P20: p1 | Q20: q1 | R20: r1 | S20: s1 | T20: t1 | U20: u1 | V20: v1 | W20: w1 | X20: x1 | Y20: y1 | Z20: z1 | AA20: aa1 | AB20: ab1 | AC20: ac1 | AD20: ad1 | AE20: ae1 | AF20: af1 | AG20: ag1 | AH20: ah1 | AI20: ai1 | AJ20: aj1 | AK20: ak1 | AL20: al1 | AM20: am1 | AN20: an1 | AO20: ao1
A21: =INDIRECT("'"&DuenTee&"'!"&A20) -> ลำดับที่ | B21: เลขประจำตัว | C21: คำนำหน้า | D21: ชื่อ | E21: =INDIRECT("'"&DuenTee&"'!"&E20) -> นามสกุล | F21: ตำแหน่ง | G21: เลขที่บัญชี | H21: วันที่เข้างาน | I21: เงินเดือน | J21: OT(จำนวนเงิน) | K21: Commission | L21: ค่าเบี้ยขยัน | M21: ค่าเบี้ยเลี้ยง | N21: ค่าโทรศัพท์ | O21: ค่าเดินทาง/ค่าพาหนะ | P21: เงินโบนัส | Q21: อื่นๆ | R21: Column2 | S21: รวมรายรับ | T21: ประกันสังคม | U21: ภาษี | V21: หักเข้ากองทุน% | W21: กองทุนสำรองเลี้ยงชีพ | X21: หักเบิกล่วงหน้า | Y21: อื่นๆ | Z21: เปลี่ยนได้ z | AA21: เปลี่ยนได้ aa | AB21: เปลี่ยนได้ ab | AC21: เปลี่ยนได้ ac | AD21: รวมจ่าย(ก่อนหักภาษี) | AE21: รวมรายการหัก | AF21: รายได้สุทธิ | AG21: ลดหย่อนรวมสุทธิ | AH21: ลดหย่อนรวม | AI21: ค่าใช้จ่ายเหมา 50% | AJ21: หักค่าลดหย่อนส่วนตัว | AK21: ประกันสังคม9 | AL21: ลดหย่อนพ่อแม่ | AM21: ลดหย่อนลูก | AN21: ค่าเบี้ยประกัน | AO21: ดอกเบี้ยบ้าน
A22: =VLOOKUP(No,INDIRECT("'"&DuenTee&"'!"&"$A$2:$AE$501"),A19,0) -> 1 | B22: =VLOOKUP(No,INDIRECT("'"&DuenTee&"'!"&"$A$2:$AE$501"),B19,0) -> 63001 | C22: =IF(VLOOKUP(No,INDIRECT("'"&DuenTee&"'!"&"$A$2:$AE$501"),C19,0)="","",VLOOKUP(No,INDIRECT("'"&DuenTee&"'!"&"$A$2:$AE$501"),C19,0)) -> นาย | D22: =VLOOKUP(No,INDIRECT("'"&DuenTee&"'!"&"$A$2:$AE$501"),D19,0) -> กฤษฎา | E22: =IF(VLOOKUP(No,INDIRECT("'"&DuenTee&"'!"&"$A$2:$AE$501"),E19,0)="","",VLOOKUP(No,INDIRECT("'"&DuenTee&"'!"&"$A$2:$AE$501"),E19,0)) -> เจริญดี | F22: =VLOOKUP(No,INDIRECT("'"&DuenTee&"'!"&"$A$2:$AE$501"),F19,0) -> หัวหน้าการเงิน | G22: 0452115508 | H22: 2005-02-01 | I22: 38250 | J22: 2800 | K22: 1500 | L22: 800 | M22: =VLOOKUP(No,INDIRECT("'"&DuenTee&"'!"&"$A$2:$AE$501"),M19,0) -> 0 | N22: 0 | O22: 0 | P22: 0 | Q22: 0 | R22: 0 | S22: 43350 | T22: 750 | U22: 1051.666667 | V22: 0.03 | W22: 1147.5 | X22: 0 | Y22: 1500 | Z22: 1 | AA22: 2 | AB22: 3 | AC22: 4 | AD22: 3407.5 | AE22: =VLOOKUP(No,INDIRECT("'"&DuenTee&"'!"&"$A$2:$Az$501"),AE19,0) -> 4459.166667 | AF22: 38890.83333 | AG22: 351200 | AH22: 169000 | AI22: 100000 | AJ22: 60000 | AK22: 9000 | AL22: 0 | AM22: 0 | AN22: 0 | AO22: 0
B23: =B21&" "&B22 -> เลขประจำตัว 63001 | D23: =D21&" "&D22&" "&E22 -> ชื่อ กฤษฎา เจริญดี

Sheet Print
A1: 1
C2: เดือน | D2: =VLOOKUP(C4,TblMonthData,2,0)&" "&Print!C5 -> มกราคม 2567
A3: วันที่ออกเงินเดือน | C3: 28 มกราคม 2567 | E3: แสดงตัวอย่างลำดับที่ | F3: 1
A4: ประจำงวดเดือน | C4: =A1+0 -> 1 | E4: เลขประจำตัว | F4: =IFERROR(Sheet1!B22,"No Data") -> 63001
A5: ปี | C5: 2567 | E5: ชื่อ | F5: =IFERROR(Sheet1!C22&Sheet1!D22&" "&Sheet1!E22,"No Data") -> นายกฤษฎา เจริญดี
A6: จำนวนพนักงานทั้งหมด | C6: =VLOOKUP(C4,TblMonthData,3,0) -> 4 | E6: ตำแหน่ง | F6: =IFERROR(Sheet1!F22,"No Data") -> หัวหน้าการเงิน
A7: เริ่มพิมพ์จากลำดับที่ | C7: 1 | E7: เงินเดือน | F7: =IFERROR(Sheet1!I22,"No Data") -> 38250
A8: สิ้นสุดการพิมพ์ลำดับที่ | C8: 2 | E8: รายได้สุทธิ | F8: =IFERROR(Sheet1!AF22,"No Data") -> 38890.83333

Sheet 1
A1: ลำดับที่ | B1: เลขประจำตัว | C1: คำนำหน้า | D1: ชื่อ | E1: นามสกุล | F1: ตำแหน่ง | G1: เลขที่บัญชี | H1: วันที่เข้างาน | I1: เงินเดือน | J1: OT(จำนวนเงิน) | K1: Commission | L1: ค่าเบี้ยขยัน | M1: ค่าเบี้ยเลี้ยง | N1: ค่าโทรศัพท์ | O1: ค่าเดินทาง/ค่าพาหนะ | P1: เงินโบนัส | Q1: อื่นๆ | R1: Column2 | S1: รวมรายรับ | T1: ประกันสังคม | U1: ภาษี | V1: หักเข้ากองทุน% | W1: กองทุนสำรองเลี้ยงชีพ | X1: หักเบิกล่วงหน้า | Y1: อื่นๆ | Z1: เปลี่ยนได้ z | AA1: เปลี่ยนได้ aa | AB1: เปลี่ยนได้ ab | AC1: เปลี่ยนได้ ac | AD1: รวมจ่าย(ก่อนหักภาษี) | AE1: รวมรายการหัก | AF1: รายได้สุทธิ | AG1: ลดหย่อนรวมสุทธิ | AH1: ลดหย่อนรวม | AI1: ค่าใช้จ่ายเหมา 50% | AJ1: หักค่าลดหย่อนส่วนตัว | AK1: ประกันสังคม9 | AL1: ลดหย่อนพ่อแม่ | AM1: ลดหย่อนลูก | AN1: ค่าเบี้ยประกัน | AO1: ดอกเบี้ยบ้าน | AP1: เพิ่มได้จนถึง AZ
A2: 1 | B2: 63001 | C2: นาย | D2: กฤษฎา | E2: เจริญดี | F2: หัวหน้าการเงิน | G2: 0452115508 | H2: 2005-02-01 | I2: 38250 | J2: 2800 | K2: 1500 | L2: 800 | M2: 0 | N2: 0 | O2: 0 | P2: 0 | S2: =SUM(Table4[[#This Row],[Column9]:[Column18]]) -> 43350 | T2: =ROUND(IF(I2>15000,15000*5%,I2*5%),0) -> 750 | U2: =TaxCal(S2,AG2) -> 1051.666667 | V2: 0.03 | W2: =Table4[[#This Row],[Column22]]*Table4[[#This Row],[Column9]] -> 1147.5 | Y2: 1500 | Z2: 1 | AA2: 2 | AB2: 3 | AC2: 4 | AD2: =T2+W2+X2+Y2+Z2+AA2+AB2+AC2 -> 3407.5 | AE2: =AD2+U2 -> 4459.166667 | AF2: =S2-AE2 -> 38890.83333 | AG2: =IF((S2*12)-(SUM(AI2:BB2))<=0,0,(S2*12)-(SUM(AI2:BB2))) -> 351200 | AH2: =SUM(AI2:BA2) -> 169000 | AI2: =IF(((I2*12)/2)>100000,100000,(I2*12)/2) -> 100000 | AJ2: 60000 | AK2: =Table4[[#This Row],[Column20]]*12 -> 9000
A3: 2 | B3: 63002 | C3: นาย | D3: รุจิกร | E3: พึ่งความสุข | F3: หัวหน้าโปรดิวเชอร์ | G3: 7522086392 | H3: 2000-05-01 | I3: 32120 | J3: 0 | S3: =SUM(Table4[[#This Row],[Column9]:[Column18]]) -> 32120 | T3: 750 | U3: =TaxCal(S3,AG3) -> 276.8333333 | V3: 0.02 | W3: =Table4[[#This Row],[Column22]]*Table4[[#This Row],[Column9]] -> 642.4 | AD3: 1392.4 | AE3: 1669.233333 | AF3: 30450.76667 | AG3: =IF((S3*12)-(SUM(AI3:BB3))<=0,0,(S3*12)-(SUM(AI3:BB3))) -> 216440 | AH3: 169000 | AI3: =IF(((I3*12)/2)>100000,100000,(I3*12)/2) -> 100000 | AJ3: 60000 | AK3: =Table4[[#This Row],[Column20]]*12 -> 9000
A4: 3 | B4: 63003 | C4: นาย | D4: วีรชน | E4: สุขดี | F4: โปรดิวเซอร์ | G4: 0452951541 | H4: 2016-11-01 | I4: 53200 | J4: 0 | S4: =SUM(Table4[[#This Row],[Column9]:[Column18]]) -> 53200 | T4: 750 | U4: 2036.666667 | W4: =Table4[[#This Row],[Column22]]*Table4[[#This Row],[Column9]] -> 0 | AD4: 750 | AE4: 2786.666667 | AF4: 50413.33333 | AG4: 469400 | AH4: 169000 | AI4: 100000 | AJ4: 60000 | AK4: =Table4[[#This Row],[Column20]]*12 -> 9000
A5: 4 | B5: 64001 | C5: นส. | D5: ผุสดี | E5: มั่งมีศรีสุข | F5: บัญชี | G5: 0322931929 | H5: 2020-12-18 | I5: 29000 | S5: =SUM(Table4[[#This Row],[Column9]:[Column18]]) -> 29000 | T5: 750 | V5: 0.01 | W5: =Table4[[#This Row],[Column22]]*Table4[[#This Row],[Column9]] -> 290 | AD5: 1040 | AE5: 1040 | AF5: 27960 | AG5: =IF((S5*12)-(SUM(AI5:BB5))<=0,0,(S5*12)-(SUM(AI5:BB5))) -> 179000 | AH5: 169000 | AI5: 100000 | AJ5: 60000 | AK5: =Table4[[#This Row],[Column20]]*12 -> 9000

Sheet 2

Sheet 3

Sheet 4

Sheet 5

Sheet 6

Sheet 7

Sheet 8

Sheet 9

Sheet 10

Sheet 11

Sheet 12

Sheet คู่มือ
